bitfinex/quotes_BTCUSD_20241216
["timestamp","ask_amount","ask_price","bid_price","bid_amount"]
[1734368478107,0.01852053,106680.0,106660.0,0.42727998]
[1734368478316,0.14380134,106680.0,106660.0,0.47352291]
[1734368478522,0.01852053,106680.0,106670.0,0.33200218]
[1734368479180,0.68887133,106690.0,106670.0,0.15]
[1734368479357,0.68937582,106690.0,106670.0,0.15]
[1734368479811,0.52204646,106690.0,106670.0,0.15]
[1734368480056,0.39654944,106690.0,106680.0,0.33200218]
[1734368480264,0.39654944,106690.0,106680.0,0.60829506]
[1734368480482,0.39654944,106690.0,106680.0,0.60825506]
[1734368480933,0.37654944,106690.0,106680.0,0.60825506]
[1734368481137,0.37654944,106690.0,106680.0,0.69155506]
[1734368481344,0.37654944,106690.0,106680.0,0.73779799]
[1734368482839,0.37217764,106690.0,106680.0,0.83614083]
[1734368483046,0.36954278,106690.0,106680.0,0.83614083]
[1734368483280,0.30454277,106690.0,106680.0,0.81079799]
[1734368484118,0.30454277,106690.0,106680.0,0.76079799]
[1734368484572,0.01237861,106690.0,106680.0,2.54020848]
[1734368484783,4e-05,106700.0,106690.0,0.46320436]
[1734368484994,4e-05,106700.0,106690.0,1.95561806]
[1734368484995,0.00014506,106700.0,106690.0,1.95561806]
[1734368485240,0.00014506,106700.0,106690.0,0.65749488]
[1734368485440,0.00014506,106700.0,106690.0,0.52549288]
[1734368486065,0.00014506,106700.0,106690.0,0.70749506]
[1734368486273,0.00014506,106700.0,106690.0,0.7837618]
[1734368486485,0.00014506,106700.0,106690.0,1.0771348]
[1734368487607,0.0001728,106740.0,106700.0,0.05]
[1734368487836,0.0002779,106740.0,106730.0,0.42629288]
[1734368488046,0.06181789,106770.0,106740.0,0.15]
[1734368488257,0.14580908,106770.0,106760.0,0.18200218]
[1734368488492,0.06237834,106770.0,106750.0,0.27629288]
[1734368489554,0.06237834,106770.0,106750.0,0.18200218]
[1734368490200,0.06237834,106770.0,106760.0,0.33200218]
[1734368491216,0.06237834,106770.0,106750.0,0.27629288]
[1734368491478,0.06237834,106770.0,106760.0,0.18200218]
[1734368492133,0.06241834,106770.0,106760.0,0.18200218]
[1734368492367,0.06241834,106770.0,106750.0,0.18200218]
[1734368492788,0.07753629,106770.0,106740.0,0.15]
[1734368493000,0.01262268,106770.0,106740.0,0.42629288]
[1734368493285,0.01262268,106770.0,106740.0,0.33200218]
[1734368493495,0.40691338,106770.0,106730.0,0.18299958]
[1734368493706,0.0457,106760.0,106730.0,0.27729028]
[1734368493918,0.0457,106760.0,106740.0,0.18200218]
[1734368494387,0.0457,106760.0,106730.0,0.0952881]
[1734368494388,0.0457,106760.0,106750.0,0.18200218]
[1734368494662,0.0457,106760.0,106750.0,0.33200218]
[1734368495936,8.64e-05,106770.0,106750.0,0.33200218]
[1734368497860,0.10494751,106780.0,106750.0,0.33200218]
[1734368498090,0.10494751,106780.0,106760.0,0.18200218]
[1734368498091,0.10511554,106780.0,106760.0,0.18200218]
[1734368498302,0.10511554,106780.0,106750.0,0.33200218]
[1734368498516,0.10788704,106780.0,106750.0,0.42728358]
[1734368498722,0.10788704,106780.0,106760.0,0.15]
[1734368498933,0.10788704,106780.0,106770.0,0.15]
[1734368499620,0.05223953,106780.0,106770.0,0.15]
[1734368499843,0.08954168,106780.0,106770.0,0.15]
[1734368500252,0.04946803,106780.0,106770.0,0.15]
[1734368500462,0.00016803,106780.0,106770.0,0.33200218]
[1734368500899,0.00016803,106780.0,106770.0,0.42629288]
[1734368503132,0.03825007,106800.0,106780.0,0.33200218]
[1734368503338,0.00108763,106800.0,106780.0,0.33217021]
[1734368504624,0.00108763,106800.0,106790.0,0.33200218]
[1734368504771,0.00108763,106800.0,106770.0,0.1509893]
[1734368504972,0.000168,106800.0,106780.0,0.18200218]
[1734368505800,0.000168,106800.0,106770.0,0.24528]
[1734368505801,0.000168,106800.0,106770.0,0.42728218]
[1734368508824,0.0478,106780.0,106770.0,0.0009893]
[1734368509029,0.0603,106780.0,106770.0,0.0009893]
[1734368509233,0.16679069,106790.0,106760.0,0.0001726]
[1734368509636,0.02,106780.0,106760.0,0.0001726]
[1734368510057,0.02,106780.0,106770.0,0.18200218]
[1734368510269,0.07249999,106790.0,106770.0,0.33200218]
[1734368510897,0.000168,106800.0,106770.0,0.33200218]
[1734368512078,0.078568,106800.0,106770.0,0.33200218]
[1734368513046,0.01356799,106800.0,106770.0,0.33200218]
[1734368514182,0.01356799,106800.0,106760.0,0.42745628]
[1734368515946,0.04526278,106800.0,106760.0,0.42745628]
[1734368516150,0.01356799,106800.0,106760.0,0.42745628]
[1734368516761,0.10785869,106800.0,106760.0,0.42745628]
[1734368516966,0.10785869,106800.0,106770.0,0.0001726]
[1734368517172,0.19096785,106800.0,106770.0,0.0001726]
[1734368517999,0.12596784,106800.0,106770.0,0.0001726]
[1734368518597,0.08310916,106800.0,106770.0,0.42646548]
[1734368518811,0.08310916,106800.0,106780.0,0.18200218]
[1734368519005,0.03193453,106800.0,106780.0,0.18200218]
[1734368519357,0.03193453,106800.0,106790.0,0.33200218]
[1734368519906,8.63e-05,106800.0,106790.0,0.33200218]
[1734368521286,8.63e-05,106800.0,106790.0,0.42629288]
[1734368521487,8.63e-05,106800.0,106790.0,0.50359288]
[1734368522284,8.63e-05,106800.0,106790.0,0.50872104]
[1734368522887,0.05151778,106830.0,106800.0,0.00512816]
[1734368523192,0.01745236,106820.0,106810.0,0.15]
[1734368523428,0.03243861,106830.0,106810.0,0.43142104]
[1734368523628,0.03243861,106830.0,106820.0,0.33200218]
[1734368523830,0.36996352,106840.0,106810.0,0.43142104]
[1734368523941,0.01744408,106830.0,106820.0,0.33200218]
[1734368524152,0.12500511,106840.0,106820.0,0.42629288]
[1734368524529,0.01743452,106830.0,106820.0,0.42629288]
[1734368524752,0.29156352,106840.0,106820.0,0.42629288]
[1734368524960,0.01743589,106830.0,106820.0,0.42629288]
[1734368525118,0.15714692,106840.0,106820.0,0.2442907]
[1734368525330,0.01742857,106830.0,106820.0,0.2442907]
[1734368525493,0.53190334,106840.0,106820.0,0.2442907]
[1734368525690,0.01742904,106830.0,106820.0,0.2442907]
[1734368525898,0.53190334,106840.0,106820.0,0.2442907]
[1734368526100,0.01742891,106830.0,106820.0,0.2442907]
[1734368526326,0.32370533,106840.0,106820.0,0.2442907]
[1734368526551,0.01742286,106830.0,106820.0,0.42629288]
[1734368526757,0.29156352,106840.0,106830.0,0.15]
[1734368526961,0.12500511,106840.0,106830.0,0.42629288]
[1734368527316,0.12500511,106840.0,106830.0,0.2442907]
[1734368527513,0.12500511,106840.0,106810.0,0.13640496]
[1734368527514,0.12500511,106840.0,106810.0,0.0009837]
[1734368527729,0.07733662,106830.0,106810.0,0.0009837]
[1734368527931,0.24389503,106830.0,106810.0,0.0009837]
[1734368528130,0.25640042,106830.0,106810.0,0.0009837]
[1734368528335,0.16655841,106820.0,106810.0,0.0009837]
[1734368528535,0.46904712,106820.0,106780.0,0.18200218]
[1734368528809,0.46904712,106820.0,106780.0,0.27727828]
[1734368529011,0.37475642,106820.0,106790.0,0.27629288]
[1734368529321,0.37475642,106820.0,106800.0,0.18200218]
[1734368529636,0.16655841,106820.0,106810.0,0.0942907]
[1734368529814,0.16655841,106820.0,106810.0,0.2442907]
[1734368530058,0.16655841,106820.0,106810.0,0.42629288]
[1734368530272,0.37475642,106830.0,106810.0,0.42629288]
[1734368530478,0.37484262,106830.0,106810.0,0.42629288]
[1734368530689,0.16664461,106830.0,106820.0,0.33200218]
[1734368530949,0.16664461,106830.0,106820.0,0.2442907]
[1734368531137,8.62e-05,106830.0,106820.0,0.2442907]
[1734368532490,8.62e-05,106830.0,106820.0,0.50849288]
[1734368532796,8.62e-05,106830.0,106820.0,0.42629288]
[1734368532797,0.08360161,106830.0,106820.0,0.42629288]
[1734368533008,0.0186016,106830.0,106820.0,0.42629288]
[1734368533203,0.16728225,106840.0,106830.0,0.15]
[1734368533497,0.68436475,106840.0,106830.0,0.15]
[1734368533659,0.20903923,106840.0,106830.0,0.15]
[1734368534071,0.20403923,106840.0,106830.0,0.15]
[1734368534271,0.51232903,106840.0,106810.0,0.15]
[1734368534442,0.16703109,106830.0,106810.0,0.2442907]
[1734368535014,0.16703109,106830.0,106800.0,0.1509892]
[1734368535301,0.16703109,106830.0,106820.0,0.15]
[1734368535506,0.70849739,106840.0,106820.0,0.15]
[1734368535638,0.80278809,106840.0,106820.0,0.15]
[1734368535841,0.59874624,106840.0,106820.0,0.15]
[1734368536046,0.29874624,106840.0,106820.0,0.15]
[1734368536407,0.20445554,106840.0,106820.0,0.15]
[1734368536618,0.20445554,106840.0,106800.0,0.41599138]
[1734368536818,0.1252711,106830.0,106810.0,0.42629288]
[1734368537023,0.1252711,106830.0,106810.0,0.2442907]
[1734368537262,0.32972664,106840.0,106810.0,0.2442907]
[1734368537876,0.32972664,106840.0,106810.0,0.42629288]
[1734368538090,0.1252711,106840.0,106810.0,0.42629288]
[1734368538771,0.2195618,106840.0,106810.0,0.15]
[1734368538975,0.22233463,106840.0,106810.0,0.15]
[1734368539404,0.26122291,106840.0,106810.0,0.15]
[1734368539623,0.16693221,106840.0,106810.0,0.2442907]
[1734368539841,0.01742863,106830.0,106810.0,0.2442907]
[1734368540072,0.01742863,106820.0,106810.0,0.2442907]
[1734368540277,0.01742863,106830.0,106800.0,0.2137684]
[1734368540490,0.01742863,106820.0,106800.0,0.309045]
[1734368540721,0.16693221,106840.0,106800.0,0.3080591]
[1734368540722,0.01742863,106830.0,106800.0,0.3080591]
[1734368540921,0.01742863,106820.0,106800.0,0.3080591]
[1734368541140,0.01742863,106830.0,106800.0,0.3080591]
[1734368541378,0.01742863,106820.0,106800.0,0.3080591]
[1734368541595,0.01742863,106830.0,106800.0,0.3080591]
[1734368541891,0.0942907,106820.0,106790.0,0.0491724]
[1734368542105,0.0942907,106820.0,106790.0,0.0001724]
[1734368542106,0.017435,106810.0,106790.0,0.0001724]
[1734368542316,0.12531368,106810.0,106790.0,0.0001724]
[1734368542518,0.29800438,106810.0,106790.0,0.0001724]
[1734368542732,0.11173101,106800.0,106790.0,0.0001724]
[1734368542943,0.14275399,106800.0,106790.0,0.0001724]
[1734368543151,0.22635628,106800.0,106790.0,0.0001724]
[1734368543365,0.20891597,106800.0,106780.0,0.12102008]
[1734368543783,0.20891597,106800.0,106790.0,0.12102008]
[1734368544207,0.08360229,106800.0,106780.0,0.18168035]
[1734368544411,0.08360229,106800.0,106780.0,0.33168035]
[1734368544824,0.08363778,106800.0,106780.0,0.33168035]
[1734368545023,0.20909446,106800.0,106780.0,0.150168]
[1734368545226,0.01745117,106790.0,106780.0,0.150168]
[1734368545432,0.08363778,106800.0,106780.0,0.150168]
[1734368545641,0.30338516,106800.0,106780.0,0.000168]
[1734368545850,0.5023408,106790.0,106730.0,0.22981235]
[1734368546053,0.5023408,106790.0,106740.0,0.2763635]
[1734368546054,0.22657924,106780.0,106740.0,0.2763635]
[1734368546262,0.3034143,106780.0,106740.0,0.2763635]
[1734368546698,0.08366692,106770.0,106740.0,0.2763635]
[1734368547316,0.47075315,106780.0,106740.0,0.2763635]
[1734368547518,0.3034143,106780.0,106750.0,0.18151235]
[1734368547926,0.23841429,106780.0,106750.0,0.18151235]
[1734368548344,0.127,106760.0,106700.0,0.17311539]
[1734368548556,0.37795762,106750.0,106700.0,0.23035309]
[1734368548765,0.13366692,106740.0,106700.0,0.23035309]
[1734368548985,0.44982612,106740.0,106700.0,0.2206633]
[1734368549472,0.28248727,106740.0,106700.0,0.40217565]
[1734368549474,0.22795762,106740.0,106700.0,0.40217565]
[1734368549951,0.22787665,106740.0,106700.0,0.40217565]
[1734368550169,0.22787665,106740.0,106700.0,0.40234365]
[1734368550824,0.22781299,106740.0,106700.0,0.40234365]
[1734368551047,0.17781299,106740.0,106700.0,0.40234365]
[1734368551272,0.08352229,106740.0,106710.0,0.18151235]
[1734368551485,0.08352229,106740.0,106730.0,0.18151235]
[1734368551711,0.08352229,106750.0,106730.0,0.27580305]
[1734368551935,0.08352229,106760.0,106740.0,0.42580305]
[1734368552579,0.14999077,106770.0,106740.0,0.42580305]
[1734368552805,0.01744134,106760.0,106740.0,0.42580305]
[1734368553026,0.01890981,106770.0,106740.0,0.42580305]
[1734368553238,0.01946946,106770.0,106740.0,0.42580305]
[1734368553656,0.00055965,106770.0,106740.0,0.42580305]
[1734368553925,0.00055965,106770.0,106760.0,0.5953247]
[1734368554137,0.00055965,106770.0,106760.0,0.7374154]
[1734368554553,0.00055965,106770.0,106760.0,0.55590305]
[1734368554979,0.00055965,106770.0,106760.0,0.7374154]
[1734368555200,0.00064595,106770.0,106760.0,0.7374154]
[1734368555417,0.00064595,106770.0,106760.0,0.75444511]
[1734368555837,4e-05,106800.0,106790.0,0.33151235]
[1734368556084,0.02793249,106800.0,106790.0,0.42597105]
[1734368556322,4e-05,106800.0,106790.0,0.42597105]
[1734368556569,4e-05,106800.0,106790.0,0.44203324]
[1734368556991,4e-05,106800.0,106790.0,0.42597105]
[1734368557407,0.02793249,106800.0,106790.0,0.42597105]
[1734368557620,4e-05,106800.0,106790.0,0.42597105]
[1734368557840,0.19881741,106830.0,106790.0,0.42597105]
[1734368558055,0.16175915,106830.0,106800.0,0.2442907]
[1734368558263,0.14685915,106830.0,106800.0,0.2442907]
[1734368558472,0.14685915,106830.0,106800.0,0.42580305]
[1734368559736,0.06333686,106830.0,106800.0,0.42580305]
[1734368559942,0.14668923,106830.0,106800.0,0.42580305]
[1734368560358,0.13668923,106830.0,106800.0,0.42580305]
[1734368561021,0.23097993,106830.0,106790.0,0.18168035]
[1734368561225,0.23097993,106830.0,106790.0,0.0944587]
[1734368561440,0.23097993,106830.0,106790.0,0.27597105]
[1734368561679,0.12084749,106830.0,106810.0,0.18151235]
[1734368561932,0.12084749,106830.0,106800.0,0.27580305]
[1734368562355,0.03749512,106830.0,106800.0,0.27580305]
[1734368562818,0.42696296,106840.0,106800.0,0.27580305]
[1734368563029,0.02789267,106830.0,106800.0,0.2442907]
[1734368563458,0.02789267,106820.0,106800.0,0.42580305]
[1734368563673,0.02789267,106830.0,106800.0,0.42580305]
[1734368563888,0.53325365,106840.0,106800.0,0.42580305]
[1734368564120,0.02789442,106820.0,106800.0,0.2442907]
[1734368564328,0.02789442,106830.0,106800.0,0.2442907]
[1734368564532,0.02789442,106820.0,106800.0,0.2442907]
[1734368564764,0.02789442,106830.0,106800.0,0.15]
[1734368564999,0.04532877,106820.0,106800.0,0.15]
[1734368565213,0.01143435,106810.0,106800.0,0.15]
[1734368565434,0.02789442,106820.0,106800.0,0.15]
[1734368565651,0.04789442,106820.0,106790.0,0.199668]
[1734368565870,0.04789442,106820.0,106790.0,0.2939587]
[1734368566077,0.04789442,106820.0,106790.0,0.0944587]
[1734368566295,0.13124679,106820.0,106790.0,0.0944587]
[1734368566759,0.04789442,106820.0,106800.0,0.18151235]
[1734368566978,0.04789442,106820.0,106790.0,0.27597105]
[1734368567392,0.04789442,106820.0,106790.0,0.2444587]
[1734368567832,0.02789442,106810.0,106790.0,0.2444587]
[1734368568330,0.02789442,106810.0,106790.0,0.000168]
[1734368568752,0.17767887,106810.0,106790.0,0.000168]
[1734368568963,0.02790417,106800.0,106790.0,0.000168]
[1734368569423,0.16129234,106810.0,106790.0,0.000168]
[1734368569633,0.22040414,106800.0,106790.0,0.000168]
[1734368569852,0.62537816,106800.0,106790.0,0.000168]
[1734368570100,0.83384858,106800.0,106790.0,0.000168]
[1734368570307,0.75096112,106800.0,106790.0,0.000168]
[1734368570745,0.40096112,106800.0,106790.0,0.000168]
[1734368570952,0.28367042,106800.0,106790.0,0.000168]
[1734368571162,0.15858817,106800.0,106790.0,0.000168]
[1734368571364,0.27587887,106800.0,106790.0,0.000168]
[1734368571574,0.40096112,106800.0,106790.0,0.000168]
[1734368573039,0.12749069,106800.0,106790.0,0.000168]
[1734368573251,0.33600902,106800.0,106790.0,0.000168]
[1734368573473,0.71089802,106800.0,106790.0,0.000168]
[1734368573696,0.05,106780.0,106740.0,0.0752]
[1734368573906,0.02792319,106770.0,106740.0,0.1694907]
[1734368575917,0.38342546,106780.0,106770.0,0.15]
[1734368575918,0.02792319,106780.0,106770.0,0.15]
[1734368576124,0.41353872,106800.0,106770.0,0.50430305]
[1734368576125,0.02792319,106790.0,106770.0,0.50430305]
[1734368576339,0.02792319,106790.0,106780.0,0.33151235]
[1734368576539,0.02792319,106790.0,106780.0,0.15]
[1734368577918,0.02792319,106790.0,106780.0,0.42580305]
[1734368578143,0.02791261,106810.0,106790.0,0.40831235]
[1734368578357,0.80091931,106840.0,106800.0,0.42580305]
[1734368578358,0.71753916,106840.0,106800.0,0.42580305]
[1734368578567,0.01744452,106830.0,106800.0,0.27580305]
[1734368578775,0.01744452,106820.0,106800.0,0.27580305]
[1734368578987,0.01744452,106810.0,106800.0,0.42580305]
[1734368579170,0.03991385,106840.0,106810.0,0.15]
[1734368579425,0.01744311,106830.0,106810.0,0.2442907]
[1734368579669,0.01744364,106820.0,106810.0,0.2442907]
[1734368579890,0.03991385,106840.0,106810.0,0.2442907]
[1734368580093,0.01744374,106830.0,106810.0,0.2442907]
[1734368580295,0.01744374,106820.0,106810.0,0.2442907]
[1734368580503,0.03991385,106840.0,106810.0,0.2442907]
[1734368580898,0.01744699,106830.0,106810.0,0.2442907]
[1734368581145,0.01744699,106820.0,106810.0,0.2442907]
[1734368581354,0.03991385,106840.0,106790.0,0.2268]
[1734368581564,0.43474094,106830.0,106790.0,0.0768]
[1734368581741,0.01745024,106820.0,106790.0,0.0768]
[1734368582010,0.01745024,106810.0,106790.0,0.35260305]
[1734368582216,0.01745024,106800.0,106790.0,0.35260305]
[1734368582452,0.12511319,106830.0,106790.0,0.35260305]
[1734368582670,0.01745274,106820.0,106790.0,0.1710907]
[1734368582879,0.34674343,106820.0,106790.0,0.0768]
[1734368583085,0.017453,106810.0,106780.0,0.04896785]
[1734368583329,0.12511319,106810.0,106780.0,0.14325855]
[1734368583951,0.29193078,106810.0,106780.0,0.14325855]
[1734368584173,0.37895055,106810.0,106780.0,0.14325855]
[1734368584847,0.28477529,106810.0,106780.0,0.14325855]
[1734368585056,0.16691099,106810.0,106780.0,0.14325855]
[1734368586364,0.68048217,106820.0,106780.0,0.14325855]
[1734368586365,0.37554973,106830.0,106800.0,0.18151235]
[1734368586580,0.37554973,106830.0,106790.0,0.0942907]
[1734368586581,0.41546358,106840.0,106810.0,0.27580305]
[1734368586799,0.20682484,106840.0,106810.0,0.27580305]
[1734368587015,0.20682484,106840.0,106810.0,0.32510305]
[1734368587016,0.03991385,106840.0,106810.0,0.32510305]
[1734368587470,0.03991385,106840.0,106810.0,0.2442907]
[1734368587894,4.49195133,106850.0,106810.0,0.2442907]
[1734368588114,4.22539204,106850.0,106820.0,0.2317]
[1734368588327,0.02790095,106840.0,106820.0,0.3259907]
[1734368588756,0.02790095,106840.0,106820.0,0.50750305]
[1734368588989,0.02789652,106840.0,106820.0,0.50750305]
[1734368589192,0.02789652,106830.0,106820.0,0.50750305]
[1734368589425,4.26422917,106850.0,106820.0,0.50750305]
[1734368589426,0.02806452,106840.0,106820.0,0.50750305]
[1734368589650,0.02806452,106840.0,106820.0,0.2317]
[1734368589915,0.02789652,106830.0,106820.0,0.2317]
[1734368590125,0.02789652,106830.0,106820.0,0.50750305]
[1734368590337,0.000168,106840.0,106820.0,0.50750305]
[1734368590586,0.02789999,106830.0,106820.0,0.3259907]
[1734368590807,0.000168,106840.0,106820.0,0.3259907]
[1734368591019,0.02789986,106830.0,106820.0,0.55400305]
[1734368591439,0.02789999,106830.0,106820.0,0.55400305]
[1734368591650,0.000168,106840.0,106820.0,0.3724907]
[1734368591855,0.02790031,106830.0,106820.0,0.3724907]
[1734368592065,0.000168,106840.0,106820.0,0.3724907]
[1734368592279,0.02790525,106830.0,106820.0,0.3724907]
[1734368592496,0.000168,106840.0,106820.0,0.3724907]
[1734368592710,0.027902,106830.0,106820.0,0.3724907]
[1734368592920,0.000168,106840.0,106820.0,0.3724907]
[1734368593129,0.02790171,106830.0,106820.0,0.3724907]
[1734368593335,4.03246073,106850.0,106820.0,0.3726587]
[1734368593548,0.02790216,106840.0,106820.0,0.3726587]
[1734368593761,0.02790216,106830.0,106820.0,0.3726587]
[1734368593966,0.02790216,106840.0,106820.0,0.3726587]
[1734368594619,0.11131743,106840.0,106820.0,0.000168]
[1734368595086,0.0174314,106830.0,106820.0,0.000168]
[1734368595372,0.39829004,106830.0,106820.0,0.000168]
[1734368595581,0.4031922,106830.0,106820.0,0.000168]
[1734368595830,0.10641527,106830.0,106820.0,0.000168]
[1734368596045,0.45897286,106830.0,106820.0,0.000168]
[1734368596253,0.37555759,106830.0,106820.0,0.000168]
[1734368596458,0.61198145,106830.0,106820.0,0.000168]
[1734368596666,0.58409577,106830.0,106820.0,0.000168]
[1734368596874,0.67838647,106830.0,106820.0,0.000168]
[1734368597294,0.3865117,106830.0,106820.0,0.000168]
[1734368597484,0.4876021,106830.0,106820.0,0.000168]
[1734368597738,0.5013918,106830.0,106820.0,0.000168]
[1734368597947,0.22748159,106830.0,106820.0,0.000168]
[1734368598156,0.20892051,106830.0,106820.0,0.18168035]
[1734368598421,0.2263432,106830.0,106820.0,0.18168035]
[1734368598874,0.20892051,106830.0,106820.0,0.18168035]
[1734368599083,0.20892051,106830.0,106820.0,0.000168]
[1734368599289,0.22633762,106830.0,106820.0,0.000168]
[1734368599494,0.14277055,106830.0,106820.0,0.000168]
[1734368599764,0.12535344,106830.0,106820.0,0.000168]
[1734368600232,0.15322285,106830.0,106820.0,0.000168]
[1734368600437,0.12535344,106830.0,106820.0,0.000168]
[1734368600643,0.23686368,106830.0,106820.0,0.000168]
[1734368601315,0.20899427,106830.0,106820.0,0.000168]
[1734368601932,0.20908057,106830.0,106820.0,0.000168]
[1734368603003,0.14408056,106830.0,106820.0,0.27597105]
[1734368603537,0.08372713,106830.0,106820.0,0.27597105]
[1734368603832,0.08372713,106830.0,106820.0,0.42597105]
[1734368604058,8.63e-05,106830.0,106820.0,0.42597105]
[1734368604308,0.14698298,106840.0,106820.0,0.2444587]
[1734368604558,0.01743391,106830.0,106820.0,0.2444587]
[1734368604810,0.14698298,106840.0,106820.0,0.2444587]
[1734368605058,0.01743389,106830.0,106820.0,0.2444587]
[1734368605316,0.14698298,106840.0,106820.0,0.2444587]
[1734368605570,0.01744306,106830.0,106820.0,0.2444587]
[1734368605821,0.14698298,106840.0,106820.0,0.2444587]
[1734368606073,0.01744277,106830.0,106820.0,0.2444587]
[1734368606349,0.31420333,106840.0,106820.0,0.2444587]
[1734368606598,0.01744501,106830.0,106820.0,0.2444587]
[1734368606851,0.31420333,106840.0,106820.0,0.150168]
[1734368607116,0.10108587,106830.0,106820.0,0.000168]
[1734368607617,0.47063145,106830.0,106800.0,0.1249]
[1734368607620,0.48110507,106830.0,106800.0,0.1249]
[1734368607826,0.48110507,106830.0,106800.0,0.0784]
[1734368607827,0.10662228,106820.0,106800.0,0.0784]
[1734368608027,0.25424204,106820.0,106800.0,0.0784]
[1734368608253,0.0453752,106810.0,106800.0,0.0784]
[1734368608462,0.0653752,106810.0,106800.0,0.0784]
[1734368608669,0.0479232,106810.0,106800.0,0.0784]
[1734368608885,0.0479232,106810.0,106790.0,0.1501726]
[1734368609108,0.01745586,106800.0,106790.0,0.0001726]
[1734368609315,0.0279232,106800.0,106790.0,0.0001726]
[1734368609528,0.27407797,106810.0,106790.0,0.0001726]
[1734368609682,0.01745646,106800.0,106790.0,0.0001726]
[1734368609892,0.27407797,106810.0,106790.0,0.0001726]
[1734368610089,0.01745655,106800.0,106790.0,0.0001726]
[1734368610307,0.27407797,106810.0,106790.0,0.1501726]
[1734368610542,0.01745535,106800.0,106790.0,0.1501726]
[1734368610729,0.27407797,106810.0,106790.0,0.1501726]
[1734368610885,0.01745521,106800.0,106790.0,0.1501726]
[1734368611072,0.01745521,106800.0,106790.0,0.25954497]
[1734368611272,0.27407797,106810.0,106790.0,0.42597565]
[1734368611504,0.01745336,106800.0,106790.0,0.42597565]
[1734368611718,0.31298206,106810.0,106790.0,0.2444633]
[1734368612327,0.01745881,106800.0,106790.0,0.2444633]
[1734368612479,0.31298206,106810.0,106790.0,0.2444633]
[1734368612721,0.01745923,106800.0,106790.0,0.0001726]
[1734368612941,0.64227275,106810.0,106780.0,0.1230726]
[1734368613130,0.11175085,106800.0,106760.0,0.1294]
[1734368613332,0.01746015,106790.0,106780.0,0.27580305]
[1734368613513,0.24798205,106810.0,106790.0,0.0488]
[1734368613896,0.20907796,106810.0,106800.0,0.35640305]
[1734368614484,0.20907796,106810.0,106800.0,0.3248907]
[1734368614703,0.20907796,106810.0,106800.0,0.41211235]
[1734368614923,0.20907796,106810.0,106800.0,0.0806]
[1734368616194,0.20907796,106810.0,106790.0,0.0488]
[1734368616419,0.01746799,106800.0,106790.0,0.14325855]
[1734368616636,0.20907796,106810.0,106790.0,0.14325855]
[1734368616637,0.20907796,106810.0,106790.0,0.4747709]
[1734368616873,0.02794883,106820.0,106800.0,0.42580305]
[1734368617083,0.19194208,106830.0,106800.0,0.50820305]
[1734368617502,0.01746697,106820.0,106800.0,0.50820305]
[1734368617725,0.01746697,106820.0,106800.0,0.3266907]
[1734368617937,0.44440969,106830.0,106800.0,0.2324]
[1734368618156,0.53870039,106830.0,106800.0,0.0824]
[1734368618360,0.0174674,106820.0,106800.0,0.0824]
[1734368618565,0.51075324,106830.0,106800.0,0.0824]
[1734368618773,0.57490944,106830.0,106790.0,0.19896785]
[1734368618994,0.0942907,106820.0,106790.0,0.15016785]
[1734368619428,0.02794849,106810.0,106790.0,0.15016785]
[1734368619633,0.02794849,106800.0,106790.0,0.15016785]
[1734368619848,0.12223785,106820.0,106790.0,0.00016785]
[1734368620053,0.02794847,106810.0,106790.0,0.00016785]
[1734368620404,0.02794715,106820.0,106800.0,0.18151235]
[1734368620491,0.02794715,106820.0,106790.0,0.4259709]
[1734368620914,0.0279473,106810.0,106790.0,0.4259709]
[1734368621128,0.0279473,106800.0,106790.0,0.4259709]
[1734368621337,0.02794715,106820.0,106790.0,0.4259709]
[1734368622017,0.02794715,106820.0,106790.0,0.24445855]
[1734368622231,0.12223785,106820.0,106790.0,0.15016785]
[1734368622442,0.12223785,106820.0,106790.0,0.00016785]
[1734368622841,0.05723784,106820.0,106790.0,0.00016785]
[1734368623086,0.46766695,106830.0,106790.0,0.00016785]
[1734368623302,0.62386551,106830.0,106790.0,0.00016785]
[1734368624391,0.21195765,106830.0,106790.0,0.2759709]
[1734368624604,0.03866695,106830.0,106800.0,0.18151235]
[1734368624800,0.03866695,106830.0,106800.0,0.30851235]
[1734368625055,0.05286163,106840.0,106800.0,0.40280305]
[1734368625056,0.00286163,106840.0,106800.0,0.40280305]
[1734368625267,0.09715233,106840.0,106800.0,0.40280305]
[1734368625516,0.19132759,106840.0,106800.0,0.40280305]
[1734368625720,8.64e-05,106830.0,106800.0,0.40280305]
[1734368625932,8.64e-05,106830.0,106810.0,0.0942907]
[1734368628296,0.0280329,106830.0,106810.0,0.0942907]
[1734368628504,0.06547388,106830.0,106810.0,0.0942907]
[1734368628656,0.0280329,106830.0,106810.0,0.0942907]
[1734368628865,0.0280329,106830.0,106800.0,0.127]
[1734368629068,4.23885833,106850.0,106800.0,0.2212907]
[1734368629265,0.0942907,106840.0,106800.0,0.2212907]
[1734368629982,0.01747307,106830.0,106800.0,0.2212907]
[1734368630212,0.01747307,106820.0,106800.0,0.2212907]
[1734368630617,0.01747307,106810.0,106800.0,0.3712907]
[1734368630854,0.0942907,106840.0,106800.0,0.3712907]
[1734368631089,0.08380711,106810.0,106800.0,0.3712907]
[1734368631341,0.11176507,106810.0,106800.0,0.3712907]
[1734368632095,0.11176569,106810.0,106800.0,0.3712907]
[1734368632371,0.20951777,106810.0,106800.0,0.3712907]
[1734368633159,0.14451776,106810.0,106800.0,0.3712907]
[1734368633685,0.14451776,106810.0,106800.0,0.3707907]
[1734368634940,0.0188071,106810.0,106800.0,0.3707907]
[1734368636455,0.50303473,106820.0,106800.0,0.3707907]
[1734368636661,0.04547263,106810.0,106800.0,0.3707907]
[1734368636877,0.50303473,106820.0,106800.0,0.3707907]
[1734368637323,0.04547258,106810.0,106800.0,0.3707907]
[1734368637535,0.50303473,106820.0,106800.0,0.3707907]
[1734368637744,0.04548854,106810.0,106800.0,0.3707907]
[1734368637957,0.48352326,106820.0,106800.0,0.3707907]
[1734368638170,0.52135389,106820.0,106810.0,0.27580305]
[1734368638379,0.03783063,106820.0,106810.0,0.42580305]
[1734368638588,0.16776464,106830.0,106810.0,0.42580305]
[1734368638800,0.34936245,106840.0,106820.0,0.41041235]
[1734368638983,0.34936245,106840.0,106820.0,0.2289]
[1734368640089,0.34936245,106840.0,106820.0,0.22886]
[1734368640715,0.38647543,106840.0,106820.0,0.22886]
[1734368640962,0.38924557,106840.0,106820.0,0.22886]
[1734368641172,0.38924557,106840.0,106800.0,0.1983]
[1734368641387,0.24948093,106840.0,106800.0,0.2925907]
[1734368641798,0.51913486,106830.0,106800.0,0.47410305]
[1734368642013,0.51913486,106830.0,106810.0,0.27580305]
[1734368642014,0.20963764,106830.0,106810.0,0.27580305]
[1734368642232,0.21240778,106840.0,106810.0,0.27580305]
[1734368642862,0.14744777,106840.0,106810.0,0.27580305]
[1734368643067,0.08384548,106830.0,106810.0,0.35290305]
[1734368643297,0.08384548,106830.0,106810.0,0.1713907]